{"text_format":"3","workbook":"xlsx","n_sheets":1,"sheets":["รายการสินค้าคงคลัง"],"not_rendered":{"images":1,"defined_names":3},"read":"whole","date_system":"1900"}

{"sheet":"รายการสินค้าคงคลัง","index":0,"n_rows":28,"n_cols":13,"rows_kept":28}
[{"$nulls":12}," "]
[{"$nulls":10},"รายการเด่นที่สั่งซื้อซ้ำหรือไม่","ใช่"]
[null,"สำหรับการสั่งซื้อซ้ำ","ID สินค้าคงคลัง","ชื่อ","คำอธิบาย","ราคาต่อหน่วย","จำนวนในคลังสินค้า","มูลค่าของสินค้าคงคลัง","ระดับการสั่งซื้อใหม่","ระยะเวลาการสั่งซื้อซ้ำเป็นวัน","จำนวนการสั่งซื้อซ้ำ","เลิกสั่งซื้อหรือไม่"]
[null,{"$f":"IFERROR((Inventory_List_Table[[#This Row],[จำนวนในคลังสินค้า]]<=Inventory_List_Table[[#This Row],[ระดับการสั่งซื้อใหม่]])*(Inventory_List_Table[[#This Row],[เลิกสั่งซื้อหรือไม่]]=\"\")*valHighlight,0)","v":1},"IN0001","รายการ 1","คำอธิบาย 1",{"v":51,"d":"฿51.00"},25,{"$f":"Inventory_List_Table[[#This Row],[ราคาต่อหน่วย]]*Inventory_List_Table[[#This Row],[จำนวนในคลังสินค้า]]","v":{"v":1275,"d":"฿1,275.00"}},29,13,50]
[null,{"$f":"IFERROR((Inventory_List_Table[[#This Row],[จำนวนในคลังสินค้า]]<=Inventory_List_Table[[#This Row],[ระดับการสั่งซื้อใหม่]])*(Inventory_List_Table[[#This Row],[เลิกสั่งซื้อหรือไม่]]=\"\")*valHighlight,0)","v":1},"IN0002","รายการ 2","คำอธิบาย 2",{"v":93,"d":"฿93.00"},132,{"$f":"Inventory_List_Table[[#This Row],[ราคาต่อหน่วย]]*Inventory_List_Table[[#This Row],[จำนวนในคลังสินค้า]]","v":{"v":12276,"d":"฿12,276.00"}},231,4,50]
[null,{"$f":"IFERROR((Inventory_List_Table[[#This Row],[จำนวนในคลังสินค้า]]<=Inventory_List_Table[[#This Row],[ระดับการสั่งซื้อใหม่]])*(Inventory_List_Table[[#This Row],[เลิกสั่งซื้อหรือไม่]]=\"\")*valHighlight,0)","v":0},"IN0003","รายการ 3","คำอธิบาย 3",{"v":57,"d":"฿57.00"},151,{"$f":"Inventory_List_Table[[#This Row],[ราคาต่อหน่วย]]*Inventory_List_Table[[#This Row],[จำนวนในคลังสินค้า]]","v":{"v":8607,"d":"฿8,607.00"}},114,11,150]
[null,{"$f":"IFERROR((Inventory_List_Table[[#This Row],[จำนวนในคลังสินค้า]]<=Inventory_List_Table[[#This Row],[ระดับการสั่งซื้อใหม่]])*(Inventory_List_Table[[#This Row],[เลิกสั่งซื้อหรือไม่]]=\"\")*valHighlight,0)","v":0},"IN0004","รายการ 4","คำอธิบาย 4",{"v":19,"d":"฿19.00"},186,{"$f":"Inventory_List_Table[[#This Row],[ราคาต่อหน่วย]]*Inventory_List_Table[[#This Row],[จำนวนในคลังสินค้า]]","v":{"v":3534,"d":"฿3,534.00"}},158,6,50]
[null,{"$f":"IFERROR((Inventory_List_Table[[#This Row],[จำนวนในคลังสินค้า]]<=Inventory_List_Table[[#This Row],[ระดับการสั่งซื้อใหม่]])*(Inventory_List_Table[[#This Row],[เลิกสั่งซื้อหรือไม่]]=\"\")*valHighlight,0)","v":0},"IN0005","รายการ 5","คำอธิบาย 5",{"v":75,"d":"฿75.00"},62,{"$f":"Inventory_List_Table[[#This Row],[ราคาต่อหน่วย]]*Inventory_List_Table[[#This Row],[จำนวนในคลังสินค้า]]","v":{"v":4650,"d":"฿4,650.00"}},39,12,50]
[null,{"$f":"IFERROR((Inventory_List_Table[[#This Row],[จำนวนในคลังสินค้า]]<=Inventory_List_Table[[#This Row],[ระดับการสั่งซื้อใหม่]])*(Inventory_List_Table[[#This Row],[เลิกสั่งซื้อหรือไม่]]=\"\")*valHighlight,0)","v":1},"IN0006","รายการ 6","คำอธิบาย 6",{"v":11,"d":"฿11.00"},5,{"$f":"Inventory_List_Table[[#This Row],[ราคาต่อหน่วย]]*Inventory_List_Table[[#This Row],[จำนวนในคลังสินค้า]]","v":{"v":55,"d":"฿55.00"}},9,13,150]
[null,{"$f":"IFERROR((Inventory_List_Table[[#This Row],[จำนวนในคลังสินค้า]]<=Inventory_List_Table[[#This Row],[ระดับการสั่งซื้อใหม่]])*(Inventory_List_Table[[#This Row],[เลิกสั่งซื้อหรือไม่]]=\"\")*valHighlight,0)","v":0},"IN0007","รายการ 7","คำอธิบาย 7",{"v":56,"d":"฿56.00"},58,{"$f":"Inventory_List_Table[[#This Row],[ราคาต่อหน่วย]]*Inventory_List_Table[[#This Row],[จำนวนในคลังสินค้า]]","v":{"v":3248,"d":"฿3,248.00"}},109,7,100,"ใช่"]
[null,{"$f":"IFERROR((Inventory_List_Table[[#This Row],[จำนวนในคลังสินค้า]]<=Inventory_List_Table[[#This Row],[ระดับการสั่งซื้อใหม่]])*(Inventory_List_Table[[#This Row],[เลิกสั่งซื้อหรือไม่]]=\"\")*valHighlight,0)","v":1},"IN0008","รายการ 8","คำอธิบาย 8",{"v":38,"d":"฿38.00"},101,{"$f":"Inventory_List_Table[[#This Row],[ราคาต่อหน่วย]]*Inventory_List_Table[[#This Row],[จำนวนในคลังสินค้า]]","v":{"v":3838,"d":"฿3,838.00"}},162,3,100]
[null,{"$f":"IFERROR((Inventory_List_Table[[#This Row],[จำนวนในคลังสินค้า]]<=Inventory_List_Table[[#This Row],[ระดับการสั่งซื้อใหม่]])*(Inventory_List_Table[[#This Row],[เลิกสั่งซื้อหรือไม่]]=\"\")*valHighlight,0)","v":0},"IN0009","รายการ 9","คำอธิบาย 9",{"v":59,"d":"฿59.00"},122,{"$f":"Inventory_List_Table[[#This Row],[ราคาต่อหน่วย]]*Inventory_List_Table[[#This Row],[จำนวนในคลังสินค้า]]","v":{"v":7198,"d":"฿7,198.00"}},82,3,150]
[null,{"$f":"IFERROR((Inventory_List_Table[[#This Row],[จำนวนในคลังสินค้า]]<=Inventory_List_Table[[#This Row],[ระดับการสั่งซื้อใหม่]])*(Inventory_List_Table[[#This Row],[เลิกสั่งซื้อหรือไม่]]=\"\")*valHighlight,0)","v":1},"IN0010","รายการ 10","คำอธิบาย 10",{"v":50,"d":"฿50.00"},175,{"$f":"Inventory_List_Table[[#This Row],[ราคาต่อหน่วย]]*Inventory_List_Table[[#This Row],[จำนวนในคลังสินค้า]]","v":{"v":8750,"d":"฿8,750.00"}},283,8,150]
[null,{"$f":"IFERROR((Inventory_List_Table[[#This Row],[จำนวนในคลังสินค้า]]<=Inventory_List_Table[[#This Row],[ระดับการสั่งซื้อใหม่]])*(Inventory_List_Table[[#This Row],[เลิกสั่งซื้อหรือไม่]]=\"\")*valHighlight,0)","v":1},"IN0011","รายการ 11","คำอธิบาย 11",{"v":59,"d":"฿59.00"},176,{"$f":"Inventory_List_Table[[#This Row],[ราคาต่อหน่วย]]*Inventory_List_Table[[#This Row],[จำนวนในคลังสินค้า]]","v":{"v":10384,"d":"฿10,384.00"}},229,1,100]
[null,{"$f":"IFERROR((Inventory_List_Table[[#This Row],[จำนวนในคลังสินค้า]]<=Inventory_List_Table[[#This Row],[ระดับการสั่งซื้อใหม่]])*(Inventory_List_Table[[#This Row],[เลิกสั่งซื้อหรือไม่]]=\"\")*valHighlight,0)","v":1},"IN0012","รายการ 12","คำอธิบาย 12",{"v":18,"d":"฿18.00"},22,{"$f":"Inventory_List_Table[[#This Row],[ราคาต่อหน่วย]]*Inventory_List_Table[[#This Row],[จำนวนในคลังสินค้า]]","v":{"v":396,"d":"฿396.00"}},36,12,50]
[null,{"$f":"IFERROR((Inventory_List_Table[[#This Row],[จำนวนในคลังสินค้า]]<=Inventory_List_Table[[#This Row],[ระดับการสั่งซื้อใหม่]])*(Inventory_List_Table[[#This Row],[เลิกสั่งซื้อหรือไม่]]=\"\")*valHighlight,0)","v":1},"IN0013","รายการ 13","คำอธิบาย 13",{"v":26,"d":"฿26.00"},72,{"$f":"Inventory_List_Table[[#This Row],[ราคาต่อหน่วย]]*Inventory_List_Table[[#This Row],[จำนวนในคลังสินค้า]]","v":{"v":1872,"d":"฿1,872.00"}},102,9,100]
[null,{"$f":"IFERROR((Inventory_List_Table[[#This Row],[จำนวนในคลังสินค้า]]<=Inventory_List_Table[[#This Row],[ระดับการสั่งซื้อใหม่]])*(Inventory_List_Table[[#This Row],[เลิกสั่งซื้อหรือไม่]]=\"\")*valHighlight,0)","v":1},"IN0014","รายการ 14","คำอธิบาย 14",{"v":42,"d":"฿42.00"},62,{"$f":"Inventory_List_Table[[#This Row],[ราคาต่อหน่วย]]*Inventory_List_Table[[#This Row],[จำนวนในคลังสินค้า]]","v":{"v":2604,"d":"฿2,604.00"}},83,2,100]
[null,{"$f":"IFERROR((Inventory_List_Table[[#This Row],[จำนวนในคลังสินค้า]]<=Inventory_List_Table[[#This Row],[ระดับการสั่งซื้อใหม่]])*(Inventory_List_Table[[#This Row],[เลิกสั่งซื้อหรือไม่]]=\"\")*valHighlight,0)","v":0},"IN0015","รายการ 15","คำอธิบาย 15",{"v":32,"d":"฿32.00"},46,{"$f":"Inventory_List_Table[[#This Row],[ราคาต่อหน่วย]]*Inventory_List_Table[[#This Row],[จำนวนในคลังสินค้า]]","v":{"v":1472,"d":"฿1,472.00"}},23,15,50]
[null,{"$f":"IFERROR((Inventory_List_Table[[#This Row],[จำนวนในคลังสินค้า]]<=Inventory_List_Table[[#This Row],[ระดับการสั่งซื้อใหม่]])*(Inventory_List_Table[[#This Row],[เลิกสั่งซื้อหรือไม่]]=\"\")*valHighlight,0)","v":1},"IN0016","รายการ 16","คำอธิบาย 16",{"v":90,"d":"฿90.00"},96,{"$f":"Inventory_List_Table[[#This Row],[ราคาต่อหน่วย]]*Inventory_List_Table[[#This Row],[จำนวนในคลังสินค้า]]","v":{"v":8640,"d":"฿8,640.00"}},180,3,50]
[null,{"$f":"IFERROR((Inventory_List_Table[[#This Row],[จำนวนในคลังสินค้า]]<=Inventory_List_Table[[#This Row],[ระดับการสั่งซื้อใหม่]])*(Inventory_List_Table[[#This Row],[เลิกสั่งซื้อหรือไม่]]=\"\")*valHighlight,0)","v":0},"IN0017","รายการ 17","คำอธิบาย 17",{"v":97,"d":"฿97.00"},57,{"$f":"Inventory_List_Table[[#This Row],[ราคาต่อหน่วย]]*Inventory_List_Table[[#This Row],[จำนวนในคลังสินค้า]]","v":{"v":5529,"d":"฿5,529.00"}},98,12,50,"ใช่"]
[null,{"$f":"IFERROR((Inventory_List_Table[[#This Row],[จำนวนในคลังสินค้า]]<=Inventory_List_Table[[#This Row],[ระดับการสั่งซื้อใหม่]])*(Inventory_List_Table[[#This Row],[เลิกสั่งซื้อหรือไม่]]=\"\")*valHighlight,0)","v":1},"IN0018","รายการ 18","คำอธิบาย 18",{"v":12,"d":"฿12.00"},6,{"$f":"Inventory_List_Table[[#This Row],[ราคาต่อหน่วย]]*Inventory_List_Table[[#This Row],[จำนวนในคลังสินค้า]]","v":{"v":72,"d":"฿72.00"}},7,13,50]
[null,{"$f":"IFERROR((Inventory_List_Table[[#This Row],[จำนวนในคลังสินค้า]]<=Inventory_List_Table[[#This Row],[ระดับการสั่งซื้อใหม่]])*(Inventory_List_Table[[#This Row],[เลิกสั่งซื้อหรือไม่]]=\"\")*valHighlight,0)","v":1},"IN0019","รายการ 19","คำอธิบาย 19",{"v":82,"d":"฿82.00"},143,{"$f":"Inventory_List_Table[[#This Row],[ราคาต่อหน่วย]]*Inventory_List_Table[[#This Row],[จำนวนในคลังสินค้า]]","v":{"v":11726,"d":"฿11,726.00"}},164,12,150]
[null,{"$f":"IFERROR((Inventory_List_Table[[#This Row],[จำนวนในคลังสินค้า]]<=Inventory_List_Table[[#This Row],[ระดับการสั่งซื้อใหม่]])*(Inventory_List_Table[[#This Row],[เลิกสั่งซื้อหรือไม่]]=\"\")*valHighlight,0)","v":0},"IN0020","รายการ 20","คำอธิบาย 20",{"v":16,"d":"฿16.00"},124,{"$f":"Inventory_List_Table[[#This Row],[ราคาต่อหน่วย]]*Inventory_List_Table[[#This Row],[จำนวนในคลังสินค้า]]","v":{"v":1984,"d":"฿1,984.00"}},113,14,50]
[null,{"$f":"IFERROR((Inventory_List_Table[[#This Row],[จำนวนในคลังสินค้า]]<=Inventory_List_Table[[#This Row],[ระดับการสั่งซื้อใหม่]])*(Inventory_List_Table[[#This Row],[เลิกสั่งซื้อหรือไม่]]=\"\")*valHighlight,0)","v":0},"IN0021","รายการ 21","คำอธิบาย 21",{"v":19,"d":"฿19.00"},112,{"$f":"Inventory_List_Table[[#This Row],[ราคาต่อหน่วย]]*Inventory_List_Table[[#This Row],[จำนวนในคลังสินค้า]]","v":{"v":2128,"d":"฿2,128.00"}},75,11,50]
[null,{"$f":"IFERROR((Inventory_List_Table[[#This Row],[จำนวนในคลังสินค้า]]<=Inventory_List_Table[[#This Row],[ระดับการสั่งซื้อใหม่]])*(Inventory_List_Table[[#This Row],[เลิกสั่งซื้อหรือไม่]]=\"\")*valHighlight,0)","v":0},"IN0022","รายการ 22","คำอธิบาย 22",{"v":24,"d":"฿24.00"},182,{"$f":"Inventory_List_Table[[#This Row],[ราคาต่อหน่วย]]*Inventory_List_Table[[#This Row],[จำนวนในคลังสินค้า]]","v":{"v":4368,"d":"฿4,368.00"}},132,15,150]
[null,{"$f":"IFERROR((Inventory_List_Table[[#This Row],[จำนวนในคลังสินค้า]]<=Inventory_List_Table[[#This Row],[ระดับการสั่งซื้อใหม่]])*(Inventory_List_Table[[#This Row],[เลิกสั่งซื้อหรือไม่]]=\"\")*valHighlight,0)","v":0},"IN0023","รายการ 23","คำอธิบาย 23",{"v":29,"d":"฿29.00"},106,{"$f":"Inventory_List_Table[[#This Row],[ราคาต่อหน่วย]]*Inventory_List_Table[[#This Row],[จำนวนในคลังสินค้า]]","v":{"v":3074,"d":"฿3,074.00"}},142,1,150,"ใช่"]
[null,{"$f":"IFERROR((Inventory_List_Table[[#This Row],[จำนวนในคลังสินค้า]]<=Inventory_List_Table[[#This Row],[ระดับการสั่งซื้อใหม่]])*(Inventory_List_Table[[#This Row],[เลิกสั่งซื้อหรือไม่]]=\"\")*valHighlight,0)","v":0},"IN0024","รายการ 24","คำอธิบาย 24",{"v":75,"d":"฿75.00"},173,{"$f":"Inventory_List_Table[[#This Row],[ราคาต่อหน่วย]]*Inventory_List_Table[[#This Row],[จำนวนในคลังสินค้า]]","v":{"v":12975,"d":"฿12,975.00"}},127,9,100]
[null,{"$f":"IFERROR((Inventory_List_Table[[#This Row],[จำนวนในคลังสินค้า]]<=Inventory_List_Table[[#This Row],[ระดับการสั่งซื้อใหม่]])*(Inventory_List_Table[[#This Row],[เลิกสั่งซื้อหรือไม่]]=\"\")*valHighlight,0)","v":0},"IN0025","รายการ 25","คำอธิบาย 25",{"v":14,"d":"฿14.00"},28,{"$f":"Inventory_List_Table[[#This Row],[ราคาต่อหน่วย]]*Inventory_List_Table[[#This Row],[จำนวนในคลังสินค้า]]","v":{"v":392,"d":"฿392.00"}},21,8,50]